[Event "*** Titled Tuesday Blitz"]
[Site "Chess.com"]
[Date "2020.04.14"]
[Round "2"]
[White "freshfoodcompany"]
[Black "Caclox"]
[Result "0-1"]
[WhiteElo "2230"]
[BlackElo "2485"]
[TimeControl "180+1"]
[EndTime "10:17:15 PDT"]
[Termination "Caclox won by checkmate"]

1. d4 {[%clk 0:03:00.9]} 1... Nf6 {[%clk 0:01:29.9]} 2. c4 {[%clk 0:02:58.7]}
2... c5 {[%clk 0:01:28]} 3. d5 {[%clk 0:02:58.3]} 3... e6 {[%clk 0:01:26.6]} 4.
Nc3 {[%clk 0:02:57.9]} 4... exd5 {[%clk 0:01:27]} 5. cxd5 {[%clk 0:02:57.5]}
5... d6 {[%clk 0:01:27.5]} 6. Bf4 {[%clk 0:02:54]} 6... g6 {[%clk 0:01:27.8]} 7.
h3 {[%clk 0:02:52.7]} 7... a6 {[%clk 0:01:27.5]} 8. a4 {[%clk 0:02:52]} 8... Bg7
{[%clk 0:01:27.9]} 9. e3 {[%clk 0:02:51.4]} 9... O-O {[%clk 0:01:28.1]} 10. Be2
{[%clk 0:02:42.5]} 10... Ne8 {[%clk 0:01:28.5]} 11. Nf3 {[%clk 0:02:41.7]} 11...
Nd7 {[%clk 0:01:28.8]} 12. O-O {[%clk 0:02:41.2]} 12... Rb8 {[%clk 0:01:28.3]}
13. a5 {[%clk 0:02:39]} 13... Qe7 {[%clk 0:01:28.1]} 14. Re1 {[%clk 0:02:33.7]}
14... Nc7 {[%clk 0:01:28.3]} 15. Nd2 {[%clk 0:02:30.2]} 15... Ne5 {[%clk
0:01:28.5]} 16. Nc4 {[%clk 0:02:28.2]} 16... Bd7 {[%clk 0:01:26.1]} 17. Nxe5
{[%clk 0:02:20.5]} 17... Bxe5 {[%clk 0:01:24.5]} 18. Bxe5 {[%clk 0:02:17.7]}
18... Qxe5 {[%clk 0:01:25.4]} 19. Bc4 {[%clk 0:02:16.8]} 19... Bb5 {[%clk
0:01:21.9]} 20. f4 {[%clk 0:02:11]} 20... Qe7 {[%clk 0:01:16.2]} 21. Bxb5 {[%clk
0:02:04.7]} 21... Nxb5 {[%clk 0:00:58.1]} 22. Nxb5 {[%clk 0:02:02.9]} 22... axb5
{[%clk 0:00:59]} 23. e4 {[%clk 0:01:46.6]} 23... Qf6 {[%clk 0:00:55.3]} 24. Qd2
{[%clk 0:01:39.9]} 24... Rfe8 {[%clk 0:00:55.1]} 25. a6 {[%clk 0:01:33.1]} 25...
b6 {[%clk 0:00:51.9]} 26. g3 {[%clk 0:01:26.2]} 26... b4 {[%clk 0:00:49]} 27.
Qe2 {[%clk 0:01:15.2]} 27... Qd8 {[%clk 0:00:43.7]} 28. Qb5 {[%clk 0:01:07]}
28... Ra8 {[%clk 0:00:40.2]} 29. Qc6 {[%clk 0:00:57.9]} 29... g5 {[%clk
0:00:14.9]} 30. e5 {[%clk 0:00:44.5]} 30... gxf4 {[%clk 0:00:13.5]} 31. gxf4
{[%clk 0:00:37.8]} 31... Qh4 {[%clk 0:00:13.1]} 32. Kg2 {[%clk 0:00:21.4]} 32...
Kh8 {[%clk 0:00:12.9]} 33. exd6 {[%clk 0:00:20]} 33... Rg8+ {[%clk 0:00:12.7]}
34. Kf1 {[%clk 0:00:18]} 34... Qxh3+ {[%clk 0:00:11.9]} 35. Ke2 {[%clk
0:00:17.8]} 35... Rg2+ {[%clk 0:00:11.6]} 36. Kd1 {[%clk 0:00:17.1]} 36... Qd3+
{[%clk 0:00:12]} 37. Kc1 {[%clk 0:00:16.5]} 37... Qc2# {[%clk 0:00:12.5]} 0-1

[Event "*** Titled Tuesday Blitz"]
[Site "Chess.com"]
[Date "2020.04.14"]
[Round "2"]
[White "2008king"]
[Black "Zajdanek"]
[Result "0-1"]
[WhiteElo "1974"]
[BlackElo "2378"]
[TimeControl "180+1"]
[EndTime "10:17:15 PDT"]
[Termination "Zajdanek won by resignation"]

1. e4 {[%clk 0:03:00.9]} 1... c5 {[%clk 0:02:59.1]} 2. Nf3 {[%clk 0:03:00.2]}
2... Nc6 {[%clk 0:02:59.3]} 3. d4 {[%clk 0:02:59.2]} 3... cxd4 {[%clk
0:02:59.6]} 4. Nxd4 {[%clk 0:03:00.1]} 4... e5 {[%clk 0:02:59.9]} 5. Nb5 {[%clk
0:02:59.5]} 5... d6 {[%clk 0:03:00.4]} 6. N1c3 {[%clk 0:02:58.3]} 6... a6 {[%clk
0:03:00.3]} 7. Na3 {[%clk 0:02:58.2]} 7... b5 {[%clk 0:03:00.9]} 8. Nd5 {[%clk
0:02:50.2]} 8... Nge7 {[%clk 0:03:00.6]} 9. c3 {[%clk 0:02:47.4]} 9... Nxd5
{[%clk 0:02:51]} 10. exd5 {[%clk 0:02:44.9]} 10... Ne7 {[%clk 0:02:46.8]} 11.
Nc2 {[%clk 0:02:34.2]} 11... g6 {[%clk 0:02:46.1]} 12. Bg5 {[%clk 0:02:31.2]}
12... Bg7 {[%clk 0:02:45.4]} 13. Nb4 {[%clk 0:02:28]} 13... f6 {[%clk
0:02:42.4]} 14. Be3 {[%clk 0:02:26.3]} 14... Bb7 {[%clk 0:02:36.3]} 15. a4
{[%clk 0:02:21]} 15... O-O {[%clk 0:02:16.1]} 16. axb5 {[%clk 0:02:18.9]} 16...
axb5 {[%clk 0:02:16.3]} 17. Bxb5 {[%clk 0:02:17.4]} 17... Rxa1 {[%clk
0:02:06.8]} 18. Qxa1 {[%clk 0:02:18.3]} 18... f5 {[%clk 0:01:58.7]} 19. Bc6
{[%clk 0:02:00.8]} 19... Bc8 {[%clk 0:01:55.4]} 20. Qa7 {[%clk 0:01:53.9]} 20...
f4 {[%clk 0:01:35.2]} 21. Bb6 {[%clk 0:01:50.6]} 21... Nxc6 {[%clk 0:01:35.2]}
22. dxc6 {[%clk 0:00:51.6]} 22... Qg5 {[%clk 0:01:34.4]} 23. Rg1 {[%clk
0:00:51.6]} 23... f3 {[%clk 0:01:31.9]} 24. Be3 {[%clk 0:00:50.5]} 24... Qf5
{[%clk 0:01:18.8]} 25. Qa2+ {[%clk 0:00:43.5]} 25... Be6 {[%clk 0:01:07.4]} 26.
Nd5 {[%clk 0:00:31.1]} 26... Kh8 {[%clk 0:01:03.6]} 27. c4 {[%clk 0:00:30.2]}
27... Qd3 {[%clk 0:01:01.2]} 28. gxf3 {[%clk 0:00:29.2]} 28... e4 {[%clk
0:00:50.4]} 29. fxe4 {[%clk 0:00:20]} 29... Qxe4 {[%clk 0:00:49.1]} 30. c7
{[%clk 0:00:19.4]} 30... Rc8 {[%clk 0:00:38]} 31. Qa4 {[%clk 0:00:16.2]} 31...
Bxd5 {[%clk 0:00:36.6]} 32. Qd7 {[%clk 0:00:15.8]} 32... Qb1+ {[%clk 0:00:23.3]}
33. Ke2 {[%clk 0:00:15.2]} 33... Bxc4+ {[%clk 0:00:20.4]} 34. Kf3 {[%clk
0:00:13.8]} 34... Qf5+ {[%clk 0:00:19.2]} 35. Kg2 {[%clk 0:00:13.8]} 35... Qxd7
{[%clk 0:00:18.9]} 0-1

[Event "*** Titled Tuesday Blitz"]
[Site "Chess.com"]
[Date "2020.04.14"]
[Round "2"]
[White "LileKoridze"]
[Black "Storne89"]
[Result "0-1"]
[WhiteElo "2276"]
[BlackElo "2599"]
[TimeControl "180+1"]
[EndTime "10:17:16 PDT"]
[Termination "Storne89 won by checkmate"]

1. d4 {[%clk 0:02:59.5]} 1... Nf6 {[%clk 0:02:57.3]} 2. c4 {[%clk 0:02:57.5]}
2... c5 {[%clk 0:02:57.1]} 3. d5 {[%clk 0:02:57.6]} 3... b5 {[%clk 0:02:57.2]}
4. cxb5 {[%clk 0:02:57.6]} 4... a6 {[%clk 0:02:57.7]} 5. bxa6 {[%clk 0:02:57.8]}
5... g6 {[%clk 0:02:58.1]} 6. Nc3 {[%clk 0:02:57.6]} 6... Bg7 {[%clk 0:02:58.7]}
7. e4 {[%clk 0:02:54.8]} 7... O-O {[%clk 0:02:59.2]} 8. Nf3 {[%clk 0:02:54.3]}
8... Qa5 {[%clk 0:02:57]} 9. Bd2 {[%clk 0:02:53.2]} 9... d6 {[%clk 0:02:56.2]}
10. Bd3 {[%clk 0:02:41.8]} 10... Bxa6 {[%clk 0:02:55]} 11. Qe2 {[%clk
0:02:33.1]} 11... Bxd3 {[%clk 0:02:49.2]} 12. Qxd3 {[%clk 0:02:33.3]} 12... Na6
{[%clk 0:02:45.6]} 13. O-O {[%clk 0:02:30.2]} 13... Nb4 {[%clk 0:02:46]} 14. Qb1
{[%clk 0:02:30.2]} 14... Qa6 {[%clk 0:02:45.5]} 15. a3 {[%clk 0:02:30.3]} 15...
Nd3 {[%clk 0:02:45.1]} 16. Ne1 {[%clk 0:02:26.7]} 16... Ne5 {[%clk 0:02:40.1]}
17. Qc2 {[%clk 0:02:19.2]} 17... Rfb8 {[%clk 0:02:39.3]} 18. Rb1 {[%clk
0:02:18]} 18... c4 {[%clk 0:02:19.2]} 19. f4 {[%clk 0:02:09.9]} 19... Qb6+
{[%clk 0:02:11.7]} 20. Kh1 {[%clk 0:02:08.2]} 20... Neg4 {[%clk 0:02:12.3]} 21.
Bc1 {[%clk 0:02:03.7]} 21... Ne3 {[%clk 0:02:10.4]} 22. Bxe3 {[%clk 0:02:03.4]}
22... Qxe3 {[%clk 0:02:11.3]} 23. Nf3 {[%clk 0:01:58.4]} 23... Qxf4 {[%clk
0:01:32.1]} 24. Nd4 {[%clk 0:00:02.7]} 24... Qh4 {[%clk 0:01:30.1]} 25. Nc6
{[%clk 0:00:02]} 25... Rb7 {[%clk 0:01:26.3]} 26. g3 {[%clk 0:00:02.3]} 26...
Qh5 {[%clk 0:01:22.5]} 27. Qf2 {[%clk 0:00:01.7]} 27... Rf8 {[%clk 0:01:22.4]}
28. Qg2 {[%clk 0:00:02]} 28... Ng4 {[%clk 0:01:22.5]} 29. Rfe1 {[%clk
0:00:01.5]} 29... Bh6 {[%clk 0:01:01.1]} 30. Qe2 {[%clk 0:00:01.4]} 30... Qg5
{[%clk 0:00:56.5]} 31. Rf1 {[%clk 0:00:01.7]} 31... Ne3 {[%clk 0:00:56.5]} 32.
Rf3 {[%clk 0:00:01.9]} 32... Ng4 {[%clk 0:00:52.2]} 33. Rff1 {[%clk 0:00:01.8]}
33... Bg7 {[%clk 0:00:44.7]} 34. Rf3 {[%clk 0:00:01.7]} 34... Qh5 {[%clk
0:00:38.9]} 35. Rff1 {[%clk 0:00:01.9]} 35... Kh8 {[%clk 0:00:28.9]} 36. Qxc4
{[%clk 0:00:01.5]} 36... Qxh2# {[%clk 0:00:28.1]} 0-1

[Event "*** Titled Tuesday Blitz"]
[Site "Chess.com"]
[Date "2020.04.14"]
[Round "2"]
[White "RestartingChess"]
[Black "leopato"]
[Result "1-0"]
[WhiteElo "2396"]
[BlackElo "2089"]
[TimeControl "180+1"]
[EndTime "10:17:18 PDT"]
[Termination "RestartingChess won by resignation"]

1. e4 {[%clk 0:03:00.9]} 1... Nf6 {[%clk 0:03:00.9]} 2. e5 {[%clk 0:03:00.8]}
2... Nd5 {[%clk 0:03:00.8]} 3. d4 {[%clk 0:03:01.7]} 3... d6 {[%clk 0:03:00.7]}
4. c4 {[%clk 0:03:02.6]} 4... Nb6 {[%clk 0:02:55.7]} 5. exd6 {[%clk 0:03:03.5]}
5... exd6 {[%clk 0:02:55.9]} 6. Nc3 {[%clk 0:03:04.4]} 6... Be7 {[%clk
0:02:56.3]} 7. Bd3 {[%clk 0:03:05]} 7... O-O {[%clk 0:02:56.7]} 8. Nge2 {[%clk
0:03:05.6]} 8... Bf6 {[%clk 0:02:57]} 9. O-O {[%clk 0:03:06]} 9... Bg4 {[%clk
0:02:55.1]} 10. f3 {[%clk 0:03:05.9]} 10... Bh5 {[%clk 0:02:55.2]} 11. Be3
{[%clk 0:03:06.3]} 11... Bg6 {[%clk 0:02:55.3]} 12. b3 {[%clk 0:03:06.4]} 12...
Nc6 {[%clk 0:02:53.3]} 13. Rc1 {[%clk 0:03:05.8]} 13... Re8 {[%clk 0:02:50.8]}
14. Bf2 {[%clk 0:03:05.9]} 14... d5 {[%clk 0:02:48.7]} 15. c5 {[%clk 0:03:03.7]}
15... Nc8 {[%clk 0:02:47.5]} 16. a3 {[%clk 0:03:00.3]} 16... a5 {[%clk
0:02:46.6]} 17. Bxg6 {[%clk 0:02:41.4]} 17... hxg6 {[%clk 0:02:47.5]} 18. Rb1
{[%clk 0:02:38.7]} 18... N8e7 {[%clk 0:02:47.8]} 19. b4 {[%clk 0:02:38.8]} 19...
axb4 {[%clk 0:02:47.6]} 20. axb4 {[%clk 0:02:39.7]} 20... Nf5 {[%clk 0:02:48.1]}
21. Nb5 {[%clk 0:02:29.1]} 21... Ra2 {[%clk 0:02:43.8]} 22. Re1 {[%clk
0:02:22.7]} 22... Ncxd4 {[%clk 0:02:14.1]} 23. Nbxd4 {[%clk 0:02:02.9]} 23...
Nxd4 {[%clk 0:02:13.6]} 24. Nxd4 {[%clk 0:01:56.8]} 24... Rxf2 {[%clk
0:01:42.8]} 25. Kxf2 {[%clk 0:01:52]} 25... Rxe1 {[%clk 0:01:35.8]} 26. Kxe1
{[%clk 0:01:51]} 26... Qe7+ {[%clk 0:01:31.3]} 27. Ne2 {[%clk 0:01:35.9]} 27...
d4 {[%clk 0:01:27.4]} 28. Kf1 {[%clk 0:01:34.1]} 28... Qe5 {[%clk 0:01:19.1]}
29. Kg1 {[%clk 0:01:27.6]} 29... Qe3+ {[%clk 0:01:12.8]} 30. Kh1 {[%clk
0:01:24]} 30... d3 {[%clk 0:01:07.3]} 31. Ng3 {[%clk 0:01:23.6]} 31... Be5
{[%clk 0:00:50]} 32. Rb3 {[%clk 0:01:09]} 32... Qh6 {[%clk 0:00:39.8]} 33. Nf1
{[%clk 0:01:03.7]} 33... c6 {[%clk 0:00:11.4]} 34. Rxd3 {[%clk 0:01:02.2]} 34...
Kh7 {[%clk 0:00:10.2]} 35. Qe1 {[%clk 0:00:58.5]} 35... Bf6 {[%clk 0:00:08]} 36.
Rd7 {[%clk 0:00:42.9]} 36... Qf4 {[%clk 0:00:07.2]} 37. Rxf7 {[%clk 0:00:40.2]}
37... g5 {[%clk 0:00:07.6]} 38. Qe4+ {[%clk 0:00:38.8]} 1-0

[Event "*** Titled Tuesday Blitz"]
[Site "Chess.com"]
[Date "2020.04.14"]
[Round "2"]
[White "BilodeauA"]
[Black "AndrewMaco"]
[Result "1-0"]
[WhiteElo "2905"]
[BlackElo "2601"]
[TimeControl "180+1"]
[EndTime "10:17:19 PDT"]
[Termination "BilodeauA won by resignation"]

1. e4 {[%clk 0:03:00.9]} 1... c6 {[%clk 0:02:55.8]} 2. Nf3 {[%clk 0:02:59.3]}
2... d5 {[%clk 0:02:53.5]} 3. d3 {[%clk 0:02:59.7]} 3... dxe4 {[%clk 0:02:52.6]}
4. dxe4 {[%clk 0:03:00.6]} 4... Qxd1+ {[%clk 0:02:53.2]} 5. Kxd1 {[%clk
0:03:01.4]} 5... Nd7 {[%clk 0:02:54.1]} 6. Nbd2 {[%clk 0:02:51.1]} 6... g6
{[%clk 0:02:54.6]} 7. Ne1 {[%clk 0:02:50.7]} 7... Bg7 {[%clk 0:02:50.9]} 8. c3
{[%clk 0:02:49.6]} 8... f5 {[%clk 0:02:48]} 9. exf5 {[%clk 0:02:36.8]} 9... gxf5
{[%clk 0:02:48.9]} 10. Nb3 {[%clk 0:02:27.8]} 10... Ngf6 {[%clk 0:02:47.3]} 11.
f3 {[%clk 0:02:26.5]} 11... Nd5 {[%clk 0:02:38]} 12. Nc2 {[%clk 0:02:23.8]}
12... O-O {[%clk 0:02:37.5]} 13. Ne3 {[%clk 0:02:20.1]} 13... Nxe3+ {[%clk
0:02:37.6]} 14. Bxe3 {[%clk 0:02:20.1]} 14... f4 {[%clk 0:02:38.2]} 15. Bd4
{[%clk 0:02:12.7]} 15... Bxd4 {[%clk 0:02:32.4]} 16. cxd4 {[%clk 0:01:53.9]}
16... Nb6 {[%clk 0:02:30.5]} 17. Bd3 {[%clk 0:01:46.3]} 17... Bf5 {[%clk
0:02:24.6]} 18. Kd2 {[%clk 0:01:33.2]} 18... Bxd3 {[%clk 0:02:17.1]} 19. Kxd3
{[%clk 0:01:32.7]} 19... Nd5 {[%clk 0:02:17.8]} 20. Rhe1 {[%clk 0:01:32.5]}
20... Rad8 {[%clk 0:02:17.1]} 21. Re4 {[%clk 0:01:27.7]} 21... Kh8 {[%clk
0:02:15.7]} 22. Rae1 {[%clk 0:01:20.5]} 22... Rg8 {[%clk 0:02:15.1]} 23. R1e2
{[%clk 0:01:20.7]} 23... b6 {[%clk 0:02:06.8]} 24. a3 {[%clk 0:01:17.6]} 24...
Rg6 {[%clk 0:02:04.9]} 25. Re6 {[%clk 0:01:15.1]} 25... Kg7 {[%clk 0:01:49.5]}
26. Nd2 {[%clk 0:01:09.8]} 26... Kf7 {[%clk 0:01:47.6]} 27. Rxg6 {[%clk
0:01:09.4]} 27... hxg6 {[%clk 0:01:48]} 28. Nc4 {[%clk 0:01:10]} 28... Kf6
{[%clk 0:01:45]} 29. Ne5 {[%clk 0:00:53.4]} 29... Rd6 {[%clk 0:01:34.8]} 30. Ke4
{[%clk 0:00:49.5]} 30... Re6 {[%clk 0:01:30.6]} 31. Rc2 {[%clk 0:00:44.9]} 31...
Ne3 {[%clk 0:01:21.2]} 32. Rxc6 {[%clk 0:00:44.6]} 32... Nxg2 {[%clk 0:01:21.3]}
33. d5 {[%clk 0:00:41.7]} 33... Rd6 {[%clk 0:01:17.6]} 34. Nc4 {[%clk
0:00:33.8]} 34... Rxc6 {[%clk 0:01:05.9]} 35. dxc6 {[%clk 0:00:34.7]} 35... Ke6
{[%clk 0:01:06.5]} 36. Ne5 {[%clk 0:00:35.3]} 36... Kd6 {[%clk 0:01:06.9]} 37.
Nxg6 {[%clk 0:00:35.9]} 37... Kxc6 {[%clk 0:00:50.1]} 38. h4 {[%clk 0:00:35.1]}
38... Nxh4 {[%clk 0:00:44]} 39. Nxh4 {[%clk 0:00:35.2]} 39... Kc5 {[%clk
0:00:44.5]} 40. b3 {[%clk 0:00:27.1]} 40... a5 {[%clk 0:00:44.1]} 41. Nf5 {[%clk
0:00:25.9]} 41... b5 {[%clk 0:00:42.5]} 42. Nxe7 {[%clk 0:00:25.4]} 42... a4
{[%clk 0:00:42.8]} 43. bxa4 {[%clk 0:00:24.4]} 43... bxa4 {[%clk 0:00:43.7]} 44.
Kxf4 {[%clk 0:00:23]} 44... Kc4 {[%clk 0:00:44.2]} 45. Nc8 {[%clk 0:00:21.6]}
45... Kb3 {[%clk 0:00:43.9]} 46. Nb6 {[%clk 0:00:21.8]} 46... Kxa3 {[%clk
0:00:44.8]} 47. Nxa4 {[%clk 0:00:22.3]} 47... Kxa4 {[%clk 0:00:45.7]} 48. Ke5
{[%clk 0:00:23]} 48... Kb5 {[%clk 0:00:45.9]} 49. f4 {[%clk 0:00:21.9]} 49...
Kc6 {[%clk 0:00:46.8]} 50. Ke6 {[%clk 0:00:22.1]} 1-0

[Event "*** Titled Tuesday Blitz"]
[Site "Chess.com"]
[Date "2020.04.14"]
[Round "2"]
[White "GHANDEEVAM2003"]
[Black "AttilaTurzo"]
[Result "1-0"]
[WhiteElo "2920"]
[BlackElo "2502"]
[TimeControl "180+1"]
[EndTime "10:17:20 PDT"]
[Termination "GHANDEEVAM2003 won by resignation"]

1. e4 {[%clk 0:03:00.9]} 1... c5 {[%clk 0:02:58.9]} 2. Nf3 {[%clk 0:03:00.5]}
2... g6 {[%clk 0:02:58.5]} 3. d4 {[%clk 0:02:58.7]} 3... cxd4 {[%clk 0:02:59.4]}
4. Nxd4 {[%clk 0:02:59.3]} 4... Nc6 {[%clk 0:02:59.1]} 5. c4 {[%clk 0:02:59.6]}
5... Bg7 {[%clk 0:02:58.9]} 6. Be3 {[%clk 0:02:59.9]} 6... Nf6 {[%clk
0:02:59.1]} 7. Nc3 {[%clk 0:03:00.1]} 7... d6 {[%clk 0:02:59.1]} 8. Be2 {[%clk
0:03:00]} 8... O-O {[%clk 0:02:58.8]} 9. O-O {[%clk 0:03:00.4]} 9... Bd7 {[%clk
0:02:59.3]} 10. Qd2 {[%clk 0:03:00.6]} 10... Nxd4 {[%clk 0:02:59.5]} 11. Bxd4
{[%clk 0:03:01.5]} 11... Bc6 {[%clk 0:03:00.1]} 12. f3 {[%clk 0:03:01.3]} 12...
a5 {[%clk 0:03:00.7]} 13. b3 {[%clk 0:03:00]} 13... Nd7 {[%clk 0:03:00.8]} 14.
Rfd1 {[%clk 0:02:56.2]} 14... Bxd4+ {[%clk 0:02:59.6]} 15. Qxd4 {[%clk
0:02:57.1]} 15... Qb6 {[%clk 0:02:59.7]} 16. Qxb6 {[%clk 0:02:53.3]} 16... Nxb6
{[%clk 0:03:00.6]} 17. Kf2 {[%clk 0:02:53.4]} 17... Rfc8 {[%clk 0:02:56.8]} 18.
Ke3 {[%clk 0:02:53.5]} 18... Nd7 {[%clk 0:02:54.4]} 19. a3 {[%clk 0:02:49.8]}
19... Nc5 {[%clk 0:02:48.4]} 20. Rab1 {[%clk 0:02:41.8]} 20... b6 {[%clk
0:02:40.1]} 21. h4 {[%clk 0:02:37.1]} 21... h6 {[%clk 0:02:38.6]} 22. f4 {[%clk
0:02:34.1]} 22... Kf8 {[%clk 0:02:26.1]} 23. g4 {[%clk 0:02:33.6]} 23... Nd7
{[%clk 0:02:19.4]} 24. Bf3 {[%clk 0:02:26.2]} 24... Rab8 {[%clk 0:01:12.2]} 25.
Be2 {[%clk 0:02:21.3]} 25... Nc5 {[%clk 0:01:09.6]} 26. Rdc1 {[%clk 0:02:05.5]}
26... e5 {[%clk 0:01:04.1]} 27. f5 {[%clk 0:02:01.8]} 27... g5 {[%clk
0:00:57.2]} 28. hxg5 {[%clk 0:01:53.6]} 28... hxg5 {[%clk 0:00:58.1]} 29. b4
{[%clk 0:01:53]} 29... axb4 {[%clk 0:00:52.9]} 30. axb4 {[%clk 0:01:53.9]} 30...
Na4 {[%clk 0:00:49.9]} 31. Nxa4 {[%clk 0:01:49.8]} 31... Bxa4 {[%clk 0:00:50.8]}
32. b5 {[%clk 0:01:50.4]} 32... Ra8 {[%clk 0:00:49.1]} 33. Bd3 {[%clk 0:01:39]}
33... Ke7 {[%clk 0:00:32.6]} 34. Rb4 {[%clk 0:01:39.1]} 34... Ra7 {[%clk
0:00:28.8]} 35. Ra1 {[%clk 0:01:34.6]} 35... Rca8 {[%clk 0:00:28.4]} 36. Kd2
{[%clk 0:01:33.3]} 36... Kd7 {[%clk 0:00:23]} 37. Kc3 {[%clk 0:01:32.6]} 37...
Ke7 {[%clk 0:00:21.7]} 38. Rb2 {[%clk 0:01:24.7]} 38... f6 {[%clk 0:00:19.7]}
39. Rba2 {[%clk 0:01:22.9]} 39... Kf7 {[%clk 0:00:18.4]} 40. Kb4 {[%clk
0:01:21]} 40... Rh8 {[%clk 0:00:14.9]} 41. Rxa4 {[%clk 0:01:19.8]} 41... Rxa4+
{[%clk 0:00:14.8]} 42. Rxa4 {[%clk 0:01:20.7]} 42... Rh3 {[%clk 0:00:15]} 43.
Bc2 {[%clk 0:01:11]} 43... Rg3 {[%clk 0:00:14]} 44. Ra7+ {[%clk 0:01:09.2]}
44... Ke8 {[%clk 0:00:14.1]} 45. Rb7 {[%clk 0:01:07.3]} 45... Rxg4 {[%clk
0:00:14.2]} 46. Rxb6 {[%clk 0:01:07.8]} 46... Rg2 {[%clk 0:00:15]} 47. Kc3
{[%clk 0:01:07.2]} 47... g4 {[%clk 0:00:14.7]} 48. Rxd6 {[%clk 0:01:07.7]} 48...
Ke7 {[%clk 0:00:13]} 49. Re6+ {[%clk 0:01:05.4]} 49... Kf7 {[%clk 0:00:13.2]}
50. b6 {[%clk 0:01:05.9]} 50... Rg3+ {[%clk 0:00:11.1]} 51. Bd3 {[%clk 0:01:05]}
51... Rxd3+ {[%clk 0:00:09.7]} 52. Kxd3 {[%clk 0:01:05.9]} 52... g3 {[%clk
0:00:10.6]} 53. Ke3 {[%clk 0:01:04]} 53... g2 {[%clk 0:00:11.5]} 54. Kf2 {[%clk
0:01:04.6]} 54... g1=Q+ {[%clk 0:00:12.4]} 55. Kxg1 {[%clk 0:01:05]} 1-0

[Event "*** Titled Tuesday Blitz"]
[Site "Chess.com"]
[Date "2020.04.14"]
[Round "2"]
[White "SavelievAlexei"]
[Black "Sebastian"]
[Result "1-0"]
[WhiteElo "2375"]
[BlackElo "2992"]
[TimeControl "180+1"]
[EndTime "10:17:20 PDT"]
[Termination "SavelievAlexei won on time"]

1. e4 {[%clk 0:02:52.3]} 1... c5 {[%clk 0:02:59.4]} 2. Nf3 {[%clk 0:02:49.9]}
2... d6 {[%clk 0:02:59.8]} 3. d4 {[%clk 0:02:49.8]} 3... cxd4 {[%clk 0:03:00.2]}
4. Nxd4 {[%clk 0:02:50.7]} 4... Nf6 {[%clk 0:03:00.7]} 5. Nc3 {[%clk 0:02:51.2]}
5... a6 {[%clk 0:03:01.3]} 6. Bg5 {[%clk 0:02:50.6]} 6... Nbd7 {[%clk
0:03:01.1]} 7. f4 {[%clk 0:02:50.2]} 7... Qc7 {[%clk 0:02:58.4]} 8. Qf3 {[%clk
0:02:50]} 8... h6 {[%clk 0:02:58.3]} 9. Bxf6 {[%clk 0:02:47.1]} 9... Nxf6 {[%clk
0:02:58.8]} 10. f5 {[%clk 0:02:46]} 10... Qc5 {[%clk 0:02:54.5]} 11. O-O-O
{[%clk 0:02:45.4]} 11... g5 {[%clk 0:02:54.6]} 12. fxg6 {[%clk 0:02:45.6]} 12...
Bg4 {[%clk 0:02:54.3]} 13. gxf7+ {[%clk 0:02:45.5]} 13... Kxf7 {[%clk
0:02:55.2]} 14. Qd3 {[%clk 0:02:45.7]} 14... Bxd1 {[%clk 0:02:54.2]} 15. Nxd1
{[%clk 0:02:46.3]} 15... e6 {[%clk 0:02:38.3]} 16. g3 {[%clk 0:02:45.7]} 16...
Bg7 {[%clk 0:02:32.2]} 17. Bh3 {[%clk 0:02:44.7]} 17... Rhe8 {[%clk 0:02:20.8]}
18. Rf1 {[%clk 0:02:38.1]} 18... Rad8 {[%clk 0:01:59]} 19. Ne3 {[%clk
0:02:33.5]} 19... h5 {[%clk 0:01:24.1]} 20. c3 {[%clk 0:01:33.3]} 20... b5
{[%clk 0:01:15.3]} 21. a3 {[%clk 0:01:32.7]} 21... Rc8 {[%clk 0:00:51.9]} 22.
Kb1 {[%clk 0:01:28.8]} 22... Qe5 {[%clk 0:00:50.2]} 23. Nf3 {[%clk 0:01:18.8]}
23... Qc5 {[%clk 0:00:45.4]} 24. Nd4 {[%clk 0:01:19]} 24... Rb8 {[%clk
0:00:23.5]} 25. g4 {[%clk 0:00:34.6]} 25... hxg4 {[%clk 0:00:16.9]} 26. Nxg4
{[%clk 0:00:33.3]} 26... Qg5 {[%clk 0:00:08.3]} 27. Nc6 {[%clk 0:00:18.6]} 27...
Ra8 {[%clk 0:00:03.5]} 28. Qxd6 {[%clk 0:00:18.6]} 28... Kg8 {[%clk 0:00:02.3]}
29. Nxf6+ {[%clk 0:00:12.8]} 29... Bxf6 {[%clk 0:00:03.2]} 30. e5 {[%clk
0:00:12.2]} 30... Bg7 {[%clk 0:00:02.4]} 31. Qd4 {[%clk 0:00:08.4]} 1-0